[Event "ETCC Open 2023"]
[Site "Budva"]
[Date "2023.11.12"]
[Round "2.47"]
[White "Druska, Juraj"]
[Black "Abasov, Nijat"]
[Result "1/2-1/2"]
[ECO "E04"]
[WhiteElo "2472"]
[BlackElo "2679"]
[Annotator "TA"]
[PlyCount "95"]
[EventDate "2023.11.10"]
[EventType "team-tourn"]
[EventCountry "MNE"]
[SourceTitle "playchess.com"]
[Source "ChessBase"]
[SourceQuality "1"]
[WhiteTeam "Slovakia"]
[BlackTeam "Azerbaijan"]
[WhiteTeamCountry "SVK"]
[BlackTeamCountry "AZE"]
[TimeControl "40/5400+30:1800+30"]

{[%evp 10,95,27,14,14,23,17,18,41,24,42,42,52,38,42,41,41,8,18,11,41,26,26,38,39,41,43,9,4,5,7,5,5,-203,0,-192,-189,-279,-254,-258,-99,-103,45,0,0,0,0,0,0,0,0,-22,0,0,0,0,0,-8,-8,-30,-28,-27,-27,-31,-19,-19,-18,-26,-8,-18,0,-8,-8,-20,-19,-20,-8,-8,-7,-8,0,-8,-8,-8,-8,-8,-8,-8]} 1. d4 {[%emt 0:00:12]} Nf6 {[%emt 0:00:07]} 2. c4 {[%emt 0:00:23]} e6 {[%emt 0:00:06]} 3. g3 {[%emt 0:00:20]} d5 {[%emt 0:00:11]} 4. Bg2 {[%emt 0:00:09]} dxc4 {[%emt 0:00:50]} 5. Nf3 {[%emt 0:00:14]} a6 {[%emt 0:05:05]} 6. Ne5 {[%emt 0:02:15]} Bb4+ {[%emt 0:03:54] E04: Open Catalan: 5 Nf3.} 7. Nc3 {[%emt 0:00:05]} Nd5 {[%emt 0:00:25]} 8. O-O $1 {[%emt 0:00:26][%mdl 4] now scores much better than the old 8.Bd2.} (8. Nxc4 Nxc3 9. bxc3 Bxc3+ 10. Bd2 Bxa1 11. Qxa1 O-O $17) 8... Nxc3 {[%emt 0:08:51]} 9. bxc3 {[%emt 0:01:56]} Bxc3 {[%emt 0:00:04]} 10. Rb1 {[%emt 0:00:05]} Qxd4 {[%emt 0:00:13]} 11. Qa4+ {[%emt 0:00:08]} (11. Qxd4 Bxd4 12. Nxc4 Nd7 $11) 11... b5 $1 {[%emt 0:02:12]} 12. Qa3 {[%emt 0:00:10] aiming for Bf4.} Qxe5 {[%emt 0:00:08]} 13. Bf4 {[%emt 0:18:49]} Qf6 {[%emt 0:00:13] Strongly threatening ...Ra7.} (13... Qxe2 $2 14. Qxc3 O-O 15. Bxa8 $18) 14. Bxc7 $1 {[%emt 0:07:48]} (14. Bxa8 e5 15. Qxc3 exf4 16. Qxf6 gxf6 $15) 14... b4 {[%emt 0:00:22] 14...Be5 is not played anymore.} (14... Be5 {simplifies} 15. Bxe5 Qxe5 16. Bxa8 Qc7) 15. Rxb4 {[%emt 0:03:15]} Bxb4 {[%emt 0:00:08]} 16. Qxb4 {[%emt 0:01:45]} a5 {[%emt 0:03:23]} 17. Qb5+ {[%emt 0:09:57]} (17. Qxc4 Ra6 $15) 17... Bd7 {[%emt 0:00:15] [#]} 18. Qb7 $146 {[%emt 0:00:12]} ({Predecessor:} 18. Qxc4 Na6 19. Bxa8 Nxc7 20. Qxc7 Qd8 21. Qa7 O-O 22. Bf3 Ba4 23. Rc1 Qd2 24. Rc5 Qxa2 25. Qxa5 {½-½ Wen,Y (2594)-Xu,X (2569) CHN-chT Liaocheng 2021 (2.2)}) 18... O-O $1 {[%emt 0:02:09]} 19. Qxa8 {[%emt 0:00:09] Qb7 is the strong threat.} Nc6 $1 $132 {[%emt 0:18:08][%mdl 2048] Black is fighting back} 20. Qb7 {[%emt 0:01:44]} Nd4 {[%emt 0:01:34]} 21. Bxa5 $2 {[%emt 0:07:31]} (21. Re1 $11 {and White has nothing to worry.}) 21... Nxe2+ $19 {[%emt 0:03:27]} 22. Kh1 {[%emt 0:00:11]} Qd4 {[%emt 0:02:10] Hoping for ...c3.} 23. Bf3 {[%emt 0:40:01] [#]} (23. Qe4 $142 Qxe4 24. Bxe4) 23... Rc8 $1 {[%emt 0:08:45][%cal Oc4c3]} 24. Bb6 {[%emt 0:01:45] [#]} (24. Bxe2 Bc6+) 24... Qd3 {[%emt 0:03:07]} (24... Qd6 $1 $19 {[%cal Oc4c3] has better winning chances. White must now prevent ...c3!} 25. Bc7 Nxg3+ 26. hxg3 Qxc7) 25. Kg2 {[%emt 0:00:10] [#] And now Bxe2 would win.} Nc3 {[%emt 0:05:29]} (25... Qd6 $1 $17 {[%cal Oc4c3] ...c3! would be deadly.} 26. Re1 Nc3) 26. Ba5 {[%emt 0:01:32] Threatens to win with Bxc3. This pair of bishops is nice.} (26. Rc1 $5 {[%cal Rc1c3]} Na4 27. Be3 $16 (27. Rd1 $2 Qxd1 {[%mdl 64] Deflection} 28. Bxd1 Bc6+ $19)) 26... Na4 {[%emt 0:01:19][%cal Od3f3]} (26... Nxa2 $2 27. Qa6 (27. Rd1 Qxd1 $17) 27... Rf8 28. Rd1 $18) 27. Rd1 {[%emt 0:02:12]} Qxd1 {[%emt 0:31:25]} 28. Qxc8+ $1 {[%emt 0:00:08]} (28. Bxd1 $2 {loses.} Bc6+ $19) 28... Bxc8 {[%emt 0:00:00]} 29. Bxd1 $11 {[%emt 0:00:01][%mdl 4096] Endgame KBB-KBN} Bb7+ {[%emt 0:00:00]} 30. f3 {[%emt 0:00:26]} Nc5 {[%emt 0:00:00]} (30... Nb2 $5 {[%cal Rb2d1]} 31. Bc2 Nd3 $11) 31. Kf2 {[%emt 0:00:13]} e5 {[%emt 0:00:00]} 32. Ke3 {[%emt 0:00:05]} f6 {[%emt 0:00:00]} 33. Be2 {[%emt 0:01:53]} Bd5 {[%emt 0:00:00]} 34. Kd2 {[%emt 0:00:10] [#]} c3+ $1 {[%emt 0:00:00][%mdl 64] Discovered Attack} 35. Bxc3 {[%emt 0:00:28]} Bxa2 {[%emt 0:00:00]} 36. Ke3 {[%emt 0:00:18]} Kf7 {[%emt 0:00:00]} 37. f4 {[%emt 0:00:16]} exf4+ {[%emt 0:00:00]} 38. Kxf4 {[%emt 0:00:02]} Ke6 {[%emt 0:00:00]} 39. Bb4 {[%emt 0:01:43] The position is equal.} g5+ {[%emt 0:00:00]} 40. Ke3 {[%emt 0:00:31]} Nd7 {[%emt 0:00:00]} 41. Ba6 {[%emt 0:30:42]} Ne5 {[%emt 0:11:43]} 42. h4 {[%emt 0:00:00]} gxh4 {[%emt 0:00:00]} 43. gxh4 {[%emt 0:00:00]} Kf7 {[%emt 0:00:00]} 44. Bc3 {[%emt 0:00:00]} Ng6 {[%emt 0:00:00]} 45. Bd3 {[%emt 0:00:00]} Nxh4 {[%emt 0:00:00]} 46. Bxh7 {[%emt 0:00:00]} Ng6 {[%emt 0:00:00]} 47. Bxg6+ {[%emt 0:00:00]} Kxg6 {[%emt 0:00:00]} 48. Bxf6 {[%emt 0:00:00] A fantastic game!   Weighted Error Value: White=0.17 (very precise) /Black=0.14 (very precise)} 1/2-1/2

[Event "ETCC Open 2023"]
[Site "Budva"]
[Date "2023.11.12"]
[Round "2.48"]
[White "Durarbayli, Vasif"]
[Black "Haring, Filip"]
[Result "1/2-1/2"]
[ECO "B12"]
[WhiteElo "2625"]
[BlackElo "2446"]
[Annotator "TA"]
[PlyCount "108"]
[EventDate "2023.11.10"]
[EventType "team-tourn"]
[EventCountry "MNE"]
[SourceTitle "playchess.com"]
[Source "ChessBase"]
[SourceQuality "1"]
[WhiteTeam "Azerbaijan"]
[BlackTeam "Slovakia"]
[WhiteTeamCountry "AZE"]
[BlackTeamCountry "SVK"]
[TimeControl "40/5400+30:1800+30"]

{[%evp 14,108,14,8,26,21,31,42,36,25,43,17,65,52,59,71,70,62,88,37,77,8,17,0,29,-20,-27,-20,0,0,0,0,11,0,61,65,91,90,105,107,90,101,105,98,101,104,137,155,149,141,120,19,56,29,111,123,135,154,150,118,117,143,125,141,153,95,153,160,133,105,118,60,68,67,81,52,91,101,251,243,228,218,203,127,118,62,69,73,83,78,56,66,45,0,18,0,50]} 1. e4 {[%emt 0:00:34]} c6 {[%emt 0:00:15]} 2. d4 {[%emt 0:01:00]} d5 {[%emt 0:00:08]} 3. e5 {[%emt 0:00:48]} Bf5 {[%emt 0:00:13]} 4. h4 {[%emt 0:01:14]} h5 {[%emt 0:00:19]} 5. c4 {[%emt 0:00:45]} e6 {[%emt 0:00:32]} 6. Nc3 {[%emt 0:01:15]} dxc4 $1 {[%emt 0:01:59][%mdl 4] is recently more successful than 6...Ne7.} 7. Bxc4 {[%emt 0:01:50]} Nd7 {[%emt 0:00:27]} 8. Nge2 {[%emt 0:00:43]} Ne7 {[%emt 0:02:30] B12: Caro-Kann: Advance Variation.} 9. Bg5 {[%emt 0:04:26]} Qb6 {[%emt 0:06:18]} 10. O-O {[%emt 0:01:42] [#]} O-O-O $146 {[%emt 0:18:43][%cal Od7e5] White is slightly better.} ({Predecessor:} 10... f6 11. exf6 gxf6 12. Be3 Nd5 13. Bd3 Nxe3 14. fxe3 Bg4 15. Bg6+ Ke7 16. Qd3 Bh6 {0-1 Lacasa Diaz,J (2411)-Aloma Vidal,R (2406) Catalunya-ch 2014 (1.1)}) 11. Na4 {[%emt 0:06:45]} Qc7 {[%emt 0:04:45][%cal Od7e5]} 12. Qb3 {[%emt 0:01:07]} f6 {[%emt 0:11:37]} (12... Nb6 $11 {is superior.} 13. Nxb6+ Qxb6) 13. exf6 {[%emt 0:04:52] White is much more active. The black rooks are badly placed.} gxf6 {[%emt 0:00:21]} 14. Bf4 {[%emt 0:01:51]} Qa5 {[%emt 0:04:48]} 15. Nac3 {[%emt 0:16:30]} ({Inferior is} 15. Bxe6 Bxe6 16. Qxe6 Qxa4 $17) 15... e5 {[%emt 0:02:18]} 16. Be3 {[%emt 0:11:55]} (16. Bh2 $16) 16... Ng6 {[%emt 0:06:09]} 17. g3 {[%emt 0:00:32]} ({Better is} 17. d5 $16) 17... exd4 $11 {[%emt 0:07:00]} 18. Nxd4 {[%emt 0:01:53]} Nc5 {[%emt 0:05:34]} 19. Qa3 {[%emt 0:03:09]} (19. Nxf5 $142 Nxb3 {[%mdl 64] Pin} 20. Be6+ Rd7 21. axb3) 19... Qxa3 {[%emt 0:00:24]} 20. bxa3 {[%emt 0:00:04]} Bh3 {[%emt 0:06:50] ...Ne5 would be deadly.} 21. Rfd1 {[%emt 0:01:39]} Ne5 {[%emt 0:00:09]} 22. Be2 {[%emt 0:00:21]} Be7 {[%emt 0:06:41]} 23. a4 {[%emt 0:06:46]} Bg4 {[%emt 0:04:12]} ({Black should play} 23... a6 $11) 24. Bxg4+ $14 {[%emt 0:03:15]} Nxg4 {[%emt 0:01:00]} 25. Nf5 {[%emt 0:00:35]} Bf8 {[%emt 0:01:49]} 26. Rxd8+ {[%emt 0:05:00]} Kxd8 {[%emt 0:00:07]} 27. Rd1+ {[%emt 0:00:45]} Kc8 {[%emt 0:02:31]} 28. Bxc5 {[%emt 0:02:51]} Bxc5 {[%emt 0:00:02]} 29. Ne4 {[%emt 0:00:10]} Bb6 {[%emt 0:00:04]} 30. Kg2 {[%emt 0:00:29]} Rf8 {[%emt 0:03:34]} 31. Rd2 {[%emt 0:01:39]} Bc7 {[%emt 0:01:25]} 32. Nc5 {[%emt 0:04:24]} (32. Re2 $16) 32... Re8 $11 {[%emt 0:01:36] Threatens to win with ...Re5.} 33. Ng7 {[%emt 0:03:27][%csl LRe8,LRh5] A dynamic duo of knights.} Re7 {[%emt 0:02:07]} (33... Re5 $11 {keeps the balance.} 34. Nce6 Ba5) 34. Nce6 $1 $16 {[%emt 0:00:38]} ({And not} 34. Nxh5 Re5 35. Nxb7 Kxb7 $17) 34... f5 {[%emt 0:00:30]} 35. Nxc7 {[%emt 0:01:28]} Rxg7 {[%emt 0:00:30][%mdl 4096] Endgame KRN-KRN} 36. Ne8 {[%emt 0:03:50]} Re7 {[%emt 0:00:29]} 37. Nd6+ {[%emt 0:00:32]} Kc7 {[%emt 0:00:04]} 38. Nxf5 {[%emt 0:00:05]} Re5 {[%emt 0:00:08]} 39. Nd4 {[%emt 0:00:30]} (39. Ng7 $142) 39... c5 {[%emt 0:01:21]} (39... a6 $142) 40. Nb5+ {[%emt 0:02:19]} Kb6 {[%emt 0:00:05]} 41. Rb2 {[%emt 0:33:30]} c4 {[%emt 0:01:59]} 42. Nc3+ {[%emt 0:00:00]} (42. f4 $1 $16 {[%cal Rf4e5]} Re7 43. Na3+ {[%mdl 64] Discovered Attack} Kc5 44. Rb5+ Kd4 45. Rxh5) 42... Kc5 $1 $14 {[%emt 0:02:36]} 43. Rxb7 {[%emt 0:00:00]} a6 {[%emt 0:06:38]} 44. f3 {[%emt 0:00:00]} Nf6 {[%emt 0:07:41] [#]} 45. Kf2 $1 {[%emt 0:00:00]} Kd4 {[%emt 0:00:03]} (45... Nd5 $16 {might work better.} 46. Ne2 Re8) 46. Ne2+ $18 {[%emt 0:00:00]} Kd3 {[%emt 0:00:08]} 47. Nf4+ {[%emt 0:00:00]} Kc3 {[%emt 0:03:14]} 48. Rb6 {[%emt 0:00:00]} Nd5 {[%emt 0:02:44] [#]} 49. Rxa6 {[%emt 0:00:00]} ({White should try} 49. Rc6 $1 $16) 49... Nxf4 $14 {[%emt 0:01:35]} 50. gxf4 $16 {[%emt 0:00:00] KR-KR} Rd5 {[%emt 0:04:02]} 51. Ke3 {[%emt 0:00:00] Rc6 is the strong threat.} Rd3+ {[%emt 0:01:01]} 52. Ke4 {[%emt 0:00:00]} Rd4+ $1 {[%emt 0:00:55]} 53. Ke3 {[%emt 0:00:00]} (53. Ke5 $5 {[%cal Rf4f5]} Kd3 54. f5 $16) 53... Rd3+ {[%emt 0:00:05]} 54. Ke4 {[%emt 0:00:00]} (54. Ke2 $5 {[%cal Rf4f5]} Rd2+ 55. Ke3 $16) 54... Rd4+ $1 {[%emt 0:00:05] Weighted Error Value: White=0.19 (very precise) /Black=0.16 (very precise)} 1/2-1/2

[Event "ETCC Open 2023"]
[Site "Budva"]
[Date "2023.11.12"]
[Round "2.49"]
[White "Keinanen, Toivo"]
[Black "Grandelius, Nils"]
[Result "0-1"]
[ECO "E00"]
[WhiteElo "2527"]
[BlackElo "2688"]
[Annotator "TA"]
[PlyCount "112"]
[EventDate "2023.11.10"]
[EventType "team-tourn"]
[EventCountry "MNE"]
[SourceTitle "playchess.com"]
[Source "ChessBase"]
[SourceQuality "1"]
[WhiteTeam "Finland"]
[BlackTeam "Sweden"]
[WhiteTeamCountry "FIN"]
[BlackTeamCountry "SWE"]
[TimeControl "40/5400+30:1800+30"]

{[%evp 9,112,3,0,0,0,18,18,5,35,0,3,11,8,-21,-22,-28,-30,-32,-33,-46,-54,-49,-50,-64,-53,-64,-51,-66,-37,-53,-38,-37,-38,-39,-38,-36,-18,-34,-27,-45,-31,-48,-48,-46,-41,-41,-41,-41,-41,-41,-9,-9,-9,-18,-21,-22,-22,-25,-25,-36,-43,-52,-14,-12,0,-74,-70,-191,-191,-738,-700,-785,-901,-913,-721,-920,-939,-784,-784,-761,-737,-601,-616,-584,-560,-421,0,-5720,-5720,-5720,-5720,-5418,-5073,-5720,-1454,-6255,-6477,-29977,-29978,-29977,-29979,-29978,-29979,-29979,-29980]} 1. d4 {[%emt 0:00:02]} Nf6 {[%emt 0:00:50]} 2. c4 {[%emt 0:00:01]} e6 {[%emt 0:00:16]} 3. g3 {[%emt 0:00:02]} Bb4+ {[%emt 0:01:26]} 4. Bd2 {[%emt 0:00:31]} Be7 {[%emt 0:00:43]} 5. Bg2 {[%emt 0:00:28]} d5 {[%emt 0:00:24]} 6. Nf3 {[%emt 0:00:02] E00: Catalan Bogo-Indian (3 g3 Bb4+).} Nbd7 {[%emt 0:01:04]} 7. O-O {[%emt 0:04:39]} c6 {[%emt 0:00:28]} 8. Qc2 {[%emt 0:01:11] The position is equal.} Ne4 {[%emt 0:01:23]} 9. Bf4 {[%emt 0:11:30]} g5 {[%emt 0:01:36]} 10. Bc1 {[%emt 0:01:19]} f5 {[%emt 0:03:06] [#]} 11. Nfd2 $146 {[%emt 0:07:03]} ({Predecessor:} 11. Nc3 h5 12. Rb1 a5 13. a3 h4 14. b4 hxg3 15. hxg3 axb4 16. axb4 Bf6 17. Rd1 {½-½ Sargsyan,S (2630)-Erigaisi,A (2701) Sharjah Masters 6th 2023 (6)}) 11... Nd6 {[%emt 0:12:31]} 12. b3 {[%emt 0:10:41]} h5 {[%emt 0:10:00]} 13. Ba3 {[%emt 0:04:05]} g4 {[%emt 0:21:35]} 14. cxd5 {[%emt 0:14:15]} cxd5 {[%emt 0:00:08]} 15. Rc1 {[%emt 0:02:34]} Nf6 {[%emt 0:01:39]} 16. Nc3 {[%emt 0:11:03]} Bd7 {[%emt 0:13:09]} 17. e3 {[%emt 0:00:58]} h4 {[%emt 0:01:42]} (17... Kf7 {is interesting.} 18. Ne2 h4 19. Nf4 Bc6) 18. Ne2 {[%emt 0:01:10]} hxg3 {[%emt 0:01:15]} (18... Kf7 {is more complex.} 19. Nf4 Bc6 20. Bb4 Qf8) 19. hxg3 {[%emt 0:02:23]} Nh5 {[%emt 0:10:36]} (19... Kf7 {keeps more tension.} 20. Nf4 Qf8 21. Nd3 Kg8) 20. Qd1 {[%emt 0:04:46]} Kf7 {[%emt 0:00:21]} 21. Rc2 {[%emt 0:01:17]} Qa5 {[%emt 0:01:03]} 22. Bb2 {[%emt 0:04:43]} Rhc8 {[%emt 0:00:31]} 23. Bc3 {[%emt 0:05:30]} Qd8 {[%emt 0:00:57]} 24. Rac1 {[%emt 0:02:56]} Bb5 {[%emt 0:01:20]} 25. Bb2 {[%emt 0:02:35]} Rxc2 {[%emt 0:02:23]} 26. Rxc2 {[%emt 0:00:01]} Rc8 {[%emt 0:02:44]} 27. Rxc8 {[%emt 0:01:34]} Qxc8 {[%emt 0:00:13]} 28. Nb1 {[%emt 0:01:05] White is weak on the light squares} Bxe2 {[%emt 0:05:09]} 29. Qxe2 {[%emt 0:00:01]} Ne4 {[%emt 0:00:12]} 30. Bxe4 {[%emt 0:04:06]} dxe4 {[%emt 0:00:01]} 31. Qc4 {[%emt 0:00:55]} Qxc4 {[%emt 0:02:41]} 32. bxc4 $11 {[%emt 0:00:01][%mdl 4096] Endgame KBN-KBN} Nf6 {[%emt 0:00:08]} 33. Kf1 {[%emt 0:01:23]} Nd7 {[%emt 0:00:33]} 34. c5 {[%emt 0:01:58] [#]} e5 $1 {[%emt 0:02:01]} 35. Nc3 {[%emt 0:00:38]} exd4 {[%emt 0:00:09]} 36. exd4 {[%emt 0:00:00]} Nf6 {[%emt 0:00:22]} 37. Ba3 {[%emt 0:00:56]} (37. Bc1 $1 $11) 37... Ke6 $17 {[%emt 0:03:39] Black converts the advantage convincingly.} 38. d5+ {[%emt 0:00:33]} Nxd5 $19 {[%emt 0:00:03]} 39. Nxd5 {[%emt 0:00:06]} (39. Nb5) 39... Kxd5 {[%emt 0:00:01] KB-KB} 40. c6 {[%emt 0:00:07] [#]} Bd8 $1 {[%emt 0:01:17]} ({Don't take} 40... Bxa3 41. c7 $18 (41. cxb7 $2 {is the wrong capture.} Bd6 $19)) 41. cxb7 {[%emt 0:04:32]} Bc7 {[%emt 0:00:14]} 42. Ke2 {[%emt 0:07:11]} Kc6 {[%emt 0:00:28]} 43. Ke3 {[%emt 0:05:08]} Kxb7 {[%emt 0:00:21]} 44. Bc5 {[%emt 0:04:38]} a5 {[%emt 0:16:07]} 45. Kd4 {[%emt 0:03:07]} Kc6 {[%emt 0:00:09]} 46. Kc4 {[%emt 0:01:04]} a4 {[%emt 0:06:19]} 47. Bd4 {[%emt 0:05:08]} Bb6 $2 {[%emt 0:05:12]} ({Better is} 47... Kd6 $19 48. Be3 Ke6) 48. Be3 $2 {[%emt 0:03:55][%mdl 8192] [#]} (48. Bxb6 $11 Kxb6 49. Kd4) 48... f4 $1 {[%emt 0:02:22][%mdl 576] Deflection} 49. Bxf4 {[%emt 0:00:11]} Bxf2 {[%emt 0:00:01]} 50. Be5 {[%emt 0:00:48]} Bc5 {[%emt 0:00:11]} 51. Bc3 {[%emt 0:00:35]} Bg1 {[%emt 0:03:34]} (51... Bd6 $142 52. Be1 Be5) 52. Bb4 {[%emt 0:00:34]} Bf2 {[%emt 0:00:41]} 53. Be7 {[%emt 0:00:30]} Bxg3 {[%emt 0:00:57] Black mates.} 54. Kd4 {[%emt 0:00:01]} Bd6 {[%emt 0:00:18]} 55. Bh4 {[%emt 0:00:59]} g3 {[%emt 0:00:33][%cal Bg4g3,Bg3g2][%mdl 32]} 56. Kxe4 {[%emt 0:00:24]} g2 {[%emt 0:00:37] Weighted Error Value: White=0.69/Black=0.24 (precise)} 0-1

[Event "ETCC Open 2023"]
[Site "Budva"]
[Date "2023.11.12"]
[Round "2.50"]
[White "Blomqvist, Erik"]
[Black "Sipila, Vilka"]
[Result "1-0"]
[ECO "C00"]
[WhiteElo "2520"]
[BlackElo "2429"]
[Annotator "ChessBase"]
[PlyCount "119"]
[EventDate "2023.11.10"]
[EventType "team-tourn"]
[EventCountry "MNE"]
[SourceTitle "playchess.com"]
[Source "ChessBase"]
[SourceQuality "1"]
[WhiteTeam "Sweden"]
[BlackTeam "Finland"]
[WhiteTeamCountry "SWE"]
[BlackTeamCountry "FIN"]
[TimeControl "40/5400+30:1800+30"]

1. e4 {[%emt 0:00:04]} c5 {[%emt 0:00:07]} 2. Nf3 {[%emt 0:00:09]} e6 {[%emt 0:00:04]} 3. d3 {[%emt 0:00:19]} Nc6 {[%emt 0:00:27]} 4. g3 {[%emt 0:00:44]} d5 {[%emt 0:00:06]} 5. Qe2 {[%emt 0:00:21]} Nf6 {[%emt 0:00:50]} 6. Bg2 {[%emt 0:00:24]} Be7 {[%emt 0:00:05]} 7. a4 {[%emt 0:01:18]} c4 {[%emt 0:09:43]} 8. dxc4 {[%emt 0:12:16]} Nxe4 {[%emt 0:00:26]} 9. O-O {[%emt 0:00:39]} O-O {[%emt 0:00:33]} 10. Rd1 {[%emt 0:06:02]} Bc5 {[%emt 0:07:09]} 11. Be3 {[%emt 0:00:26]} Qb6 {[%emt 0:00:15]} 12. Bxc5 {[%emt 0:03:07]} Qxc5 {[%emt 0:00:17]} 13. Na3 {[%emt 0:01:57]} Re8 {[%emt 0:15:24]} 14. Nb5 {[%emt 0:06:49]} Qb6 {[%emt 0:15:51]} 15. Nd2 {[%emt 0:11:32]} Nxd2 {[%emt 0:10:38]} 16. cxd5 {[%emt 0:05:40]} a6 {[%emt 0:07:06]} 17. dxc6 {[%emt 0:05:27]} axb5 {[%emt 0:00:05]} 18. Qxb5 {[%emt 0:05:05]} Qxb5 {[%emt 0:11:11]} 19. axb5 {[%emt 0:00:06]} Rxa1 {[%emt 0:00:09]} 20. Rxa1 {[%emt 0:00:05]} bxc6 {[%emt 0:00:04]} 21. Bxc6 {[%emt 0:08:59]} Rd8 {[%emt 0:00:05]} 22. b3 {[%emt 0:01:48]} Kf8 {[%emt 0:10:34]} 23. b6 {[%emt 0:05:45]} Ke7 {[%emt 0:00:17]} 24. b7 {[%emt 0:04:39]} Bxb7 {[%emt 0:00:37]} 25. Bxb7 {[%emt 0:00:14]} Rd7 {[%emt 0:00:12]} 26. Bc6 {[%emt 0:09:50]} Rc7 {[%emt 0:00:11]} 27. Ra6 {[%emt 0:00:22]} Kd6 {[%emt 0:01:04]} 28. Be4+ {[%emt 0:01:18]} Kc5 {[%emt 0:00:34]} 29. Bxh7 {[%emt 0:02:57]} g6 {[%emt 0:10:56]} 30. h4 {[%emt 0:02:18]} Kb5 {[%emt 0:00:00]} 31. Ra2 {[%emt 0:00:30]} Nf3+ {[%emt 0:00:00]} 32. Kf1 {[%emt 0:00:37]} Nd4 {[%emt 0:00:00]} 33. h5 {[%emt 0:02:01]} gxh5 {[%emt 0:00:00]} 34. Ra4 {[%emt 0:00:54]} e5 {[%emt 0:00:00]} 35. Bd3+ {[%emt 0:00:33]} Kb6 {[%emt 0:00:00]} 36. Ra6+ {[%emt 0:01:59]} Kc5 {[%emt 0:00:00]} 37. Rh6 {[%emt 0:00:34]} Kd5 {[%emt 0:00:00]} 38. Bc4+ {[%emt 0:00:50]} Ke4 {[%emt 0:00:00]} 39. c3 {[%emt 0:00:22]} Nf3 {[%emt 0:00:00]} 40. Rd6 {[%emt 0:00:41]} Kf5 {[%emt 0:00:15]} 41. Ke2 {[%emt 0:06:53]} e4 {[%emt 0:26:12]} 42. Ke3 {[%emt 0:00:46]} Ne5 {[%emt 0:00:18]} 43. Rd5 {[%emt 0:01:42]} f6 {[%emt 0:01:36]} 44. Kd4 {[%emt 0:07:57]} Rh7 {[%emt 0:00:40]} 45. Bf1 {[%emt 0:03:05]} h4 {[%emt 0:00:23]} 46. Bg2 {[%emt 0:00:45]} Ke6 {[%emt 0:01:34]} 47. Bxe4 {[%emt 0:03:30]} Rg7 {[%emt 0:01:42]} 48. gxh4 {[%emt 0:00:35]} Rg4 {[%emt 0:00:20]} 49. Rb5 {[%emt 0:00:35]} Rxh4 {[%emt 0:01:44]} 50. Rb6+ {[%emt 0:00:05]} Ke7 {[%emt 0:00:03]} 51. Kd5 {[%emt 0:00:46]} Rh5 {[%emt 0:00:04]} 52. Rb7+ {[%emt 0:00:33]} Nd7+ {[%emt 0:00:03]} 53. Kd4 {[%emt 0:00:10]} Kd6 {[%emt 0:00:29]} 54. b4 {[%emt 0:01:37]} f5 {[%emt 0:01:02]} 55. Rb5 {[%emt 0:00:22]} Ke6 {[%emt 0:00:43]} 56. f4 {[%emt 0:01:11]} Nf6 {[%emt 0:00:14]} 57. Re5+ {[%emt 0:00:18]} Kf7 {[%emt 0:00:45]} 58. Rxf5 {[%emt 0:00:19]} Rh8 {[%emt 0:00:20]} 59. Bd5+ {[%emt 0:00:23]} Ke7 {[%emt 0:00:14]} 60. Re5+ {[%emt 0:00:17]} 1-0

[Event "ETCC Open 2023"]
[Site "Budva"]
[Date "2023.11.12"]
[Round "2.51"]
[White "Valkama, Eero"]
[Black "Sorensen, Hampus"]
[Result "0-1"]
[ECO "B52"]
[WhiteElo "2310"]
[BlackElo "2479"]
[Annotator "ChessBase"]
[PlyCount "86"]
[EventDate "2023.11.10"]
[EventType "team-tourn"]
[EventCountry "MNE"]
[SourceTitle "playchess.com"]
[Source "ChessBase"]
[SourceQuality "1"]
[WhiteTeam "Finland"]
[BlackTeam "Sweden"]
[WhiteTeamCountry "FIN"]
[BlackTeamCountry "SWE"]
[TimeControl "40/5400+30:1800+30"]

1. e4 {[%emt 0:00:04]} c5 {[%emt 0:00:24]} 2. Nf3 {[%emt 0:00:07]} d6 {[%emt 0:00:10]} 3. Bb5+ {[%emt 0:00:07]} Bd7 {[%emt 0:00:11]} 4. Bxd7+ {[%emt 0:00:08]} Nxd7 {[%emt 0:00:08]} 5. O-O {[%emt 0:00:10]} e6 {[%emt 0:00:21]} 6. b3 {[%emt 0:03:28]} Be7 {[%emt 0:00:55]} 7. Bb2 {[%emt 0:01:30]} Bf6 {[%emt 0:00:15]} 8. d4 {[%emt 0:15:33]} cxd4 {[%emt 0:00:24]} 9. Bxd4 {[%emt 0:00:29]} Ne7 {[%emt 0:03:25]} 10. c4 {[%emt 0:01:52]} Nc6 {[%emt 0:12:41]} 11. Bxf6 {[%emt 0:10:24]} Nxf6 {[%emt 0:06:12]} 12. Nc3 {[%emt 0:00:10]} O-O {[%emt 0:01:20]} 13. Qd2 {[%emt 0:07:37]} Qa5 {[%emt 0:10:07]} 14. Rac1 {[%emt 0:18:02]} Rfd8 {[%emt 0:01:12]} 15. Rfd1 {[%emt 0:00:22]} a6 {[%emt 0:07:01]} 16. Nd4 {[%emt 0:11:31]} Nxd4 {[%emt 0:11:44]} 17. Qxd4 {[%emt 0:00:26]} Rac8 {[%emt 0:00:16]} 18. a4 {[%emt 0:08:41]} h6 {[%emt 0:02:33]} 19. Rb1 {[%emt 0:09:15]} Qg5 {[%emt 0:06:25]} 20. Rd3 {[%emt 0:04:29]} Nd7 {[%emt 0:03:01]} 21. Rg3 {[%emt 0:04:21]} Qe5 {[%emt 0:00:02]} 22. Qe3 {[%emt 0:00:47]} Nf6 {[%emt 0:02:42]} 23. Rd1 {[%emt 0:00:49]} Kh8 {[%emt 0:05:36]} 24. f4 {[%emt 0:00:54]} Qa5 {[%emt 0:01:05]} 25. Kh1 {[%emt 0:00:44]} Qb4 {[%emt 0:01:17]} 26. Rb1 {[%emt 0:00:44]} d5 {[%emt 0:08:34]} 27. exd5 {[%emt 0:00:21]} exd5 {[%emt 0:00:02]} 28. Nxd5 {[%emt 0:00:30]} Nxd5 {[%emt 0:00:11]} 29. cxd5 {[%emt 0:00:01]} Rxd5 {[%emt 0:00:16]} 30. Rf3 {[%emt 0:00:34]} Rcd8 {[%emt 0:01:54]} 31. Rbf1 {[%emt 0:00:32]} Rd4 {[%emt 0:02:09]} 32. f5 {[%emt 0:00:21]} f6 {[%emt 0:01:06]} 33. h3 {[%emt 0:01:00]} Re4 {[%emt 0:00:49]} 34. Qc3 {[%emt 0:00:37]} Qe7 {[%emt 0:00:14]} 35. Qc1 {[%emt 0:00:43]} Re2 {[%emt 0:01:06]} 36. R3f2 {[%emt 0:00:24]} Rxf2 {[%emt 0:02:16]} 37. Rxf2 {[%emt 0:00:02]} Rd3 {[%emt 0:00:10]} 38. Qc2 {[%emt 0:00:57]} Qe1+ {[%emt 0:02:26]} 39. Kh2 {[%emt 0:00:10]} Qe5+ {[%emt 0:00:03]} 40. Kh1 {[%emt 0:00:34]} Qd5 {[%emt 0:02:03]} 41. Kg1 {[%emt 0:05:37]} Rd1+ {[%emt 0:05:32]} 42. Rf1 {[%emt 0:02:52]} Rd2 {[%emt 0:00:14]} 43. Qd1 {[%emt 0:03:45]} Qxg2# {[%emt 0:00:45]} 0-1